{"text_format":"3","workbook":"xlsx","n_sheets":4,"sheets":["Начало","Разходи","Приходи","Резюме"],"not_rendered":{"charts":1,"defined_names":2},"read":"whole","date_system":"1900"}

{"sheet":"Начало","index":0,"n_rows":8,"n_cols":2,"rows_kept":8}
[null,"ЗА ТОЗИ ШАБЛОН"]
[null,"Използвайте тази работна книга \"Бюджет за събитие\", за да проследявате възникналите разходи и спечелените приходи от събитие."]
[null,"Попълнете име на събитие и въведете данни в таблиците в работния лист \"Разходи\" и работния лист \"Приходи\"."]
[null,"Общо разходи и Общо приходи се изчисляват автоматично."]
[null,"Резюме за печалбата и загубата и загубата се актуализират автоматично в работния лист \"Резюме\"."]
[null,"Забележка: "]
[null,"Допълнителни инструкции са предоставени в колона A във всеки работен лист. Този текст е скрит нарочно. За да премахнете текста, изберете колона А, след което изберете Изтрий. За да покажете текст, изберете колона A, след което променете цвета на шрифта."]
[null,"За да научите повече за таблиците, натиснете SHIFT и след това F10 в таблица, изберете опцията ТАБЛИЦА, след което изберете АЛТЕРНАТИВЕН ТЕКСТ."]

{"sheet":"Разходи","index":1,"n_rows":33,"n_cols":8,"rows_kept":33,"merged":[[0,5,0,7],[1,1,1,7],[2,6,2,7]]}
["Въведете очаквани и действителни разходи за всяка категория в съответните таблици в този работен лист. Общите разходи се изчисляват автоматично. Полезни инструкции как да използвате този работен лист, можете да намерите в клетките в тази колона. Натиснете стрелката надолу, за да започнете."]
["Въведете име на събитие в клетка вдясно, за да персонализирате заглавието на този и на другите работни листове.","Бюджет за събитие за \nИме на събитие"]
["Етикетът \"Разходи\" е в клетка G3.",{"$nulls":5}," Разходи"]
["Етикетът \"Очаквани\" е в клетка G4, а етикетът \"Действителни\" е в клетка H4.",{"$nulls":5},"Очаквани","Действителни"]
["Етикетът за \"Общо разходи\" е в клетката вдясно. Общите очаквани разходи се изчисляват автоматично в клетка G5. Общите действителни разходи и лентата за данни, изобразяваща общите действителни разходи, се актуализират автоматично в клетка H5. Следващата инструкция е в клетка A7.","Общо разходи",{"$nulls":4},{"$f":"SUM(C12,C20,C26,C33,G12,G20,G25)","v":{"v":1145,"d":"1,145.00 лв."}},{"$f":"SUM(D12,D20,D26,D33,H12,H20,H25)","v":{"v":395,"d":"395.00 лв."}}]
[]
["Въведете Разходи Място в таблицата, която започва от клетката вдясно, и Разходи Почерпка в таблицата, която започва от клетка F7. Следващата инструкция е в клетка A14.","Място","Очаквани","Действителни",null,"Почерпка","Очаквани","Действителни"]
[null,"Такси за стая/зала",{"v":500,"d":"500.00 лв."},{"v":250,"d":"250.00 лв."},null,"Храна"]
[null,"Персонал на мястото",{"v":400,"d":"400.00 лв."},{"v":50,"d":"50.00 лв."},null,"Напитки"]
[null,"Оборудване",{"$nulls":3},"Покривки"]
[null,"Маси и столове",{"$nulls":3},"Персонал и бакшиш"]
[null,"Общо",{"$f":"SUBTOTAL(109,РазходиМясто[Очаквани])","v":{"v":900,"d":"900.00 лв."}},{"$f":"SUBTOTAL(109,РазходиМясто[Действителни])","v":{"v":300,"d":"300.00 лв."}},null,"Общо",{"$f":"SUBTOTAL(109,РазходиПочерпка[Очаквани])","v":{"v":0,"d":"0.00 лв."}},{"$f":"SUBTOTAL(109,РазходиПочерпка[Действителни])","v":{"v":0,"d":"0.00 лв."}}]
[]
["Въведете Разходи Украса в таблицата, която започва от клетката вдясно, и Разходи Програма в таблицата, която започва от клетка F14. Следващата инструкция е в клетка A22.","Украса","Очаквани","Действителни",null,"Програма","Очаквани","Действителни"]
[null,"Цветя",{"v":200,"d":"200.00 лв."},{"v":50,"d":"50.00 лв."},null,"Изпълнители"]
[null,"Свещи",{"$nulls":3},"Лектори"]
[null,"Осветление",{"$nulls":3},"Пътувания"]
[null,"Балони",{"$nulls":3},"Хотел"]
[null,"Хартиени консумативи",{"$nulls":3},"Други"]
[null,"Общо",{"$f":"SUBTOTAL(109,РазходиУкраса[Очаквани])","v":{"v":200,"d":"200.00 лв."}},{"$f":"SUBTOTAL(109,РазходиУкраса[Действителни])","v":{"v":50,"d":"50.00 лв."}},null,"Общо",{"$f":"SUBTOTAL(109,РазходиПрограма[Очаквани])","v":{"v":0,"d":"0.00 лв."}},{"$f":"SUBTOTAL(109,РазходиПрограма[Действителни])","v":{"v":0,"d":"0.00 лв."}}]
[]
["Въведете Разходи Реклама в таблицата, която започва от клетката вдясно, и Разходи Награди в таблицата, която започва от клетка F22. Следващата инструкция е в клетка A28.","Реклама","Очаквани","Действителни",null,"Награди","Очаквани","Действителни"]
[null,"Графични материали",{"v":45,"d":"45.00 лв."},{"v":45,"d":"45.00 лв."},null,"Ленти/почетни значки/трофеи"]
[null,"Копирни услуги/печат",{"$nulls":3},"Подаръци"]
[null,"Пощенски разходи",{"$nulls":3},"Общо",{"$f":"SUBTOTAL(109,РазходиНагради[Очаквани])","v":{"v":0,"d":"0.00 лв."}},{"$f":"SUBTOTAL(109,РазходиНагради[Действителни])","v":{"v":0,"d":"0.00 лв."}}]
[null,"Общо",{"$f":"SUBTOTAL(109,РазходиРеклама[Очаквани])","v":{"v":45,"d":"45.00 лв."}},{"$f":"SUBTOTAL(109,РазходиРеклама[Действителни])","v":{"v":45,"d":"45.00 лв."}}]
[]
["Въведете Разходи Други в таблицата, която започва от клетката вдясно.","Разни","Очаквани","Действителни"]
[null,"Телефон"]
[null,"Транспорт"]
[null,"Канцеларски материали"]
[null,"Факс услуги"]
[null,"Общо",{"$f":"SUBTOTAL(109,РазходиДруги[Очаквани])","v":{"v":0,"d":"0.00 лв."}},{"$f":"SUBTOTAL(109,РазходиДруги[Действителни])","v":{"v":0,"d":"0.00 лв."}}]

{"sheet":"Приходи","index":2,"n_rows":30,"n_cols":7,"rows_kept":30,"merged":[[1,1,1,6],[2,5,2,6]]}
["Въведете очаквани и действителни приходи за всяка категория в съответните таблици в този работен лист. Общите приходи се изчисляват автоматично. Полезни инструкции как да използвате този работен лист, можете да намерите в клетките в тази колона. Натиснете стрелката надолу, за да започнете."]
["Името на събитието се актуализира автоматично в клетката вдясно.",{"$f":"Разходи!B2","v":"Бюджет за събитие за \nИме на събитие"}]
["Етикетът \"Приходи\" е в клетка F3.",{"$nulls":4}," Приходи"]
["Етикетът \"Очаквани\" е в клетка F4, а етикетът \"Действителни\" е в клетка G4.",{"$nulls":4},"Очаквани","Действителни"]
["Етикетът \"Общо приходи\" е в клетка отдясно. Общите очаквани приходи се изчисляват автоматично в клетка F5. Общo действителни приходи и лентата за данни, изобразяваща общите действителни приходи, се актуализират автоматично в клетка G5.","Общо приходи",{"$nulls":3},{"$f":"SUM(ТаксиЗаВход[[#Totals],[Общо очаквани]],РекламиВПрограмата[[#Totals],[Общо очаквани]],УчастнициВИзложбатаДоставчици[[#Totals],[Общо очаквани]],РазпродажбаНаАртикули[[#Totals],[Общо очаквани]])","v":{"v":1936,"d":"1,936.00 лв."}},{"$f":"SUM(ТаксиЗаВход[[#Totals],[Общо действителни]],РекламиВПрограмата[[#Totals],[Общо действителни]],УчастнициВИзложбатаДоставчици[[#Totals],[Общо действителни]],РазпродажбаНаАртикули[[#Totals],[Общо действителни]])","v":{"v":1831,"d":"1,831.00 лв."}}]
["Етикетът за \"Такси за вход\" е в клетката вдясно.","Такси за вход"]
["Въведете Очаквани и действителени брой такси за вход с цени на билетите в таблицата, започвайки от клетката вдясно. Очаквани и действителни приходи от таксите за вход се изчисляват автоматично. Следващата инструкция е в клетка A12.","Очаквани","Действителни","Тип","Цена","Общо очаквани","Общо действителни"]
[null,300,278,"Възрастни @",{"v":5,"d":"5.00 лв."},{"$f":"B8*E8","v":{"v":1500,"d":"1,500.00 лв."}},{"$f":"C8*E8","v":{"v":1390,"d":"1,390.00 лв."}}]
[null,197,195,"Деца @",{"v":2,"d":"2.00 лв."},{"$f":"B9*E9","v":{"v":394,"d":"394.00 лв."}},{"$f":"C9*E9","v":{"v":390,"d":"390.00 лв."}}]
[null,42,51,"Други @",{"v":1,"d":"1.00 лв."},{"v":42,"d":"42.00 лв."},{"v":51,"d":"51.00 лв."}]
[null," ",{"$nulls":3},{"$f":"SUBTOTAL(109,ТаксиЗаВход[Общо очаквани])","v":{"v":1936,"d":"1,936.00 лв."}},{"$f":"SUBTOTAL(109,ТаксиЗаВход[Общо действителни])","v":{"v":1831,"d":"1,831.00 лв."}}]
["Етикетът за \"Реклами в програмата\" е в клетката вдясно.","Реклами в програмата"]
["Въведете Очаквани и действителни брой реклами в програмата с цени на рекламите в таблицата, започвайки от клетката вдясно. Очаквани и действителни приходи от реклами се изчисляват автоматично. Следващата инструкция е в клетка A18.","Очаквани","Действителни","Тип","Цена","Общо очаквани","Общо действителни"]
[{"$nulls":3},"Титулни страници @",null,{"$f":"B14*E14","v":{"v":0,"d":"0.00 лв."}},{"$f":"C14*E14","v":{"v":0,"d":"0.00 лв."}}]
[{"$nulls":3},"Половин страници @",null,{"$f":"B15*E15","v":{"v":0,"d":"0.00 лв."}},{"$f":"C15*E15","v":{"v":0,"d":"0.00 лв."}}]
[{"$nulls":3},"Четвърт страници @",null,{"v":0,"d":"0.00 лв."},{"v":0,"d":"0.00 лв."}]
[null," ",{"$nulls":3},{"$f":"SUBTOTAL(109,РекламиВПрограмата[Общо очаквани])","v":{"v":0,"d":"0.00 лв."}},{"$f":"SUBTOTAL(109,РекламиВПрограмата[Общо действителни])","v":{"v":0,"d":"0.00 лв."}}]
["Етикетът за \"Участници в изложбата или доставчици\" е в клетката вдясно.","Участници в изложбата/доставчици"]
["Въведете Очаквани и действителни брой участници в изложбата и доставчици и цени за щанд в таблицата, започвайки от клетката вдясно. Очаквани и действителни приходи се изчисляват автоматично. Следващата инструкция е в клетка A24.","Очаквани","Действителни","Тип","Цена","Общо очаквани","Общо действителни"]
[{"$nulls":3},"Големи щандове @",null,{"$f":"B20*E20","v":{"v":0,"d":"0.00 лв."}},{"$f":"C20*E20","v":{"v":0,"d":"0.00 лв."}}]
[{"$nulls":3},"Средни щандове @",null,{"$f":"B21*E21","v":{"v":0,"d":"0.00 лв."}},{"$f":"C21*E21","v":{"v":0,"d":"0.00 лв."}}]
[{"$nulls":3},"Малки щандове @",null,{"v":0,"d":"0.00 лв."},{"v":0,"d":"0.00 лв."}]
[null," ",{"$nulls":3},{"$f":"SUBTOTAL(109,УчастнициВИзложбатаДоставчици[Общо очаквани])","v":{"v":0,"d":"0.00 лв."}},{"$f":"SUBTOTAL(109,УчастнициВИзложбатаДоставчици[Общо действителни])","v":{"v":0,"d":"0.00 лв."}}]
["Етикетът за \"Разпродажба на артикули\" е в клетката вдясно.","Разпродажба на артикули"]
["Въведете Очаквани и действителни брой продадени артикули и цени на артикулите в таблицата, започвайки от клетката вдясно. Очаквани и действителни приходи се изчисляват автоматично.","Очаквани","Действителни","Тип","Цена","Общо очаквани","Общо действителни"]
[{"$nulls":3},"Артикули @",null,{"$f":"B26*E26","v":{"v":0,"d":"0.00 лв."}},{"$f":"C26*E26","v":{"v":0,"d":"0.00 лв."}}]
[{"$nulls":3},"Артикули @",null,{"$f":"B27*E27","v":{"v":0,"d":"0.00 лв."}},{"$f":"C27*E27","v":{"v":0,"d":"0.00 лв."}}]
[{"$nulls":3},"Артикули @",null,{"v":0,"d":"0.00 лв."},{"v":0,"d":"0.00 лв."}]
[{"$nulls":3},"Артикули @",null,{"v":0,"d":"0.00 лв."},{"v":0,"d":"0.00 лв."}]
[null," ",{"$nulls":3},{"$f":"SUBTOTAL(109,РазпродажбаНаАртикули[Общо очаквани])","v":{"v":0,"d":"0.00 лв."}},{"$f":"SUBTOTAL(109,РазпродажбаНаАртикули[Общо действителни])","v":{"v":0,"d":"0.00 лв."}}]

{"sheet":"Резюме","index":3,"n_rows":9,"n_cols":4,"rows_kept":9,"merged":[[1,1,1,3],[2,2,2,3],[8,1,8,4],[9,1,9,3]]}
["Резюме за печалбата и загубата, показващи общo приходи и разходи, се актуализират автоматично в този работен лист. Полезни инструкции как да използвате този работен лист, можете да намерите в клетките в тази колона. Натиснете стрелката надолу, за да започнете."]
["Име на събитие се актуализира автоматично в клетката вдясно.",{"$f":"Разходи!B2","v":"Бюджет за събитие за \nИме на събитие"}]
["Етикетът \"Резюме за печалбата и загубата\" е в клетка C3. Следващата инструкция е в клетка A5.",null,"Резюме за печалбата и загубата"]
[]
["Таблицата \"Общо\", която започва от клетката вдясно, се актуализира автоматично. Следващата инструкция е в клетка A9.","Общо","Очаквани","Действителни"]
[null,"Общо приходи",{"$f":"Приходи!F5","v":{"v":1936,"d":"1,936.00 лв."}},{"$f":"Приходи!G5","v":{"v":1831,"d":"1,831.00 лв."}}]
[null,"Общо разходи",{"$f":"Разходи!G5","v":{"v":1145,"d":"1,145.00 лв."}},{"$f":"Разходи!H5","v":{"v":395,"d":"395.00 лв."}}]
[null,"Обща печалба (или загуба)",{"$f":"C6-C7","v":{"v":791,"d":"791.00 лв."}},{"$f":"D6-D7","v":{"v":1436,"d":"1,436.00 лв."}}]
["Колонната диаграма с клъстери, показваща сравнение на общo очаквани и действителни приходи и разходи, е в клетката вдясно.","Колонната диаграма с клъстери, показваща сравнение на общo очаквани и действителни приходи и разходи, е в тази клетка."]